bitfinex-derivatives/quotes_BTCF0:USTF0_20250329
["timestamp","ask_amount","ask_price","bid_price","bid_amount"]
[1743281670017,0.15329201,82545.0,82544.0,0.06432178]
[1743281670211,0.15329201,82545.0,82544.0,0.18551528]
[1743281673313,0.18639201,82545.0,82544.0,0.18551528]
[1743281676411,0.18639201,82545.0,82544.0,0.00162178]
[1743281676613,0.18639201,82545.0,82544.0,0.00018178]
[1743281677021,0.18639201,82545.0,82544.0,0.00154178]
[1743281677215,0.59559201,82545.0,82544.0,0.00154178]
[1743281678012,0.59559201,82545.0,82544.0,0.00018178]
[1743281681521,0.53179201,82545.0,82544.0,0.12137528]
[1743281681720,0.53179201,82545.0,82544.0,0.12277528]
[1743281682120,0.53179201,82545.0,82544.0,0.18647528]
[1743281688419,0.53179201,82545.0,82544.0,0.54727528]
[1743281688920,0.00140001,82545.0,82544.0,0.54727528]
[1743281689231,0.0605946,82547.0,82546.0,0.1211906]
[1743281689428,0.1211867,82549.0,82548.0,0.0605931]
[1743281689622,0.1225467,82549.0,82548.0,0.0605931]
[1743281689823,0.1225467,82549.0,82548.0,0.0944531]
[1743281691723,0.1225467,82549.0,82548.0,0.10658558]
[1743281693430,0.1530467,82549.0,82548.0,0.10658558]
[1743281694919,0.00136,82549.0,82548.0,0.10658558]
[1743281695126,0.1211842,82551.0,82550.0,0.1211832]
[1743281695427,0.1528431,82552.0,82551.0,0.1535832]
[1743281695623,0.1542031,82552.0,82551.0,0.1703995]
[1743281695824,0.1528431,82552.0,82551.0,0.1703995]
[1743281698529,0.1528431,82552.0,82551.0,0.1549432]
[1743281700732,0.1528431,82552.0,82551.0,0.00136]
[1743281700931,0.1211876,82548.0,82547.0,0.21766611]
[1743281701234,0.4826276,82548.0,82547.0,0.21902611]
[1743281701622,0.4826276,82548.0,82547.0,0.00136]
[1743281702742,0.60376997,82548.0,82547.0,0.00136]
[1743281705142,0.1212038,82537.0,82531.0,0.43052826]
[1743281705431,0.6027238,82537.0,82536.0,0.36402874]
[1743281705738,0.6034038,82537.0,82536.0,0.00096]
[1743281705934,0.1212185,82527.0,82526.0,0.29059443]
[1743281706234,0.13416476,82527.0,82526.0,0.29155443]
[1743281706438,0.13316476,82527.0,82526.0,0.29155443]
[1743281706634,0.13216476,82527.0,82526.0,0.29155443]
[1743281706835,0.16276476,82527.0,82526.0,0.29155443]
[1743281707237,0.16276476,82527.0,82526.0,0.29955443]
[1743281708737,0.13216476,82527.0,82526.0,0.42077433]
[1743281708935,0.13216476,82527.0,82526.0,0.48467433]
[1743281709541,0.16456476,82527.0,82526.0,0.48467433]
[1743281709741,0.16456476,82527.0,82526.0,0.1940799]
[1743281711053,0.19576476,82527.0,82526.0,0.1940799]
[1743281711350,0.19576476,82527.0,82526.0,0.1931199]
[1743281711552,0.19576476,82527.0,82526.0,0.008]
[1743281712741,0.55656476,82527.0,82526.0,0.008]
[1743281713445,0.55656476,82527.0,82526.0,0.1292199]
[1743281714841,0.55656476,82527.0,82526.0,0.008]
[1743281721643,0.19576476,82527.0,82526.0,0.008]
[1743281721840,0.55656476,82527.0,82526.0,0.008]
[1743281722044,0.1212464,82508.0,82494.0,0.72386874]
[1743281722236,0.12220641,82508.0,82507.0,0.0014448]
[1743281723043,0.48300641,82508.0,82507.0,0.0014448]
[1743281723247,0.1182655,82495.0,82494.0,0.36306874]
[1743281723440,0.1149055,82495.0,82494.0,0.36374874]
[1743281724448,0.1785055,82495.0,82494.0,0.36374874]
[1743281725160,0.1785055,82495.0,82494.0,0.36874874]
[1743281725450,0.1785055,82495.0,82494.0,0.37174874]
[1743281725638,0.19056859,82495.0,82494.0,0.37174874]
[1743281726041,0.19056859,82495.0,82494.0,0.00868]
[1743281726349,0.19056859,82495.0,82494.0,0.008]
[1743281726743,0.19056859,82495.0,82494.0,0.005]
[1743281727145,0.59976859,82495.0,82494.0,0.00568]
[1743281727351,0.59976859,82495.0,82494.0,0.005]
[1743281727650,0.59976859,82495.0,82494.0,0.00568]
[1743281728048,0.59976859,82495.0,82494.0,0.126947]
[1743281728351,0.59976859,82495.0,82494.0,0.126267]
[1743281729847,0.96056859,82495.0,82494.0,0.126267]
[1743281730051,0.96056859,82495.0,82494.0,0.126987]
[1743281730453,0.96056859,82495.0,82494.0,0.126267]
[1743281730651,0.42190309,82495.0,82494.0,0.126267]
[1743281730952,0.40984,82495.0,82494.0,0.126947]
[1743281731253,0.37326784,82512.0,82505.0,0.1212508]
[1743281731444,0.26679818,82506.0,82505.0,0.1222108]
[1743281731841,0.14554888,82506.0,82505.0,0.1222108]
[1743281732153,0.14554888,82506.0,82505.0,0.1859108]
[1743281732854,0.26679818,82506.0,82505.0,0.1859108]
[1743281733649,0.14554888,82506.0,82505.0,0.1859108]
[1743281733851,0.14654888,82506.0,82505.0,0.1859108]
[1743281734155,0.00188001,82506.0,82505.0,0.1859108]
[1743281734957,0.00288001,82506.0,82505.0,0.1859108]
[1743281735858,0.002,82506.0,82505.0,0.1859108]
[1743281736155,0.001,82506.0,82505.0,0.1859108]
[1743281736656,0.1212376,82514.0,82513.0,0.121239]
[1743281736856,0.12219761,82514.0,82513.0,0.482999]
[1743281737260,0.12219761,82514.0,82513.0,0.122199]
[1743281737558,0.12219761,82514.0,82513.0,0.546099]
[1743281738259,0.15269761,82514.0,82513.0,0.546099]
[1743281738472,0.15469761,82514.0,82513.0,0.546099]
[1743281739663,0.18919761,82514.0,82513.0,0.546099]
[1743281740363,0.19119761,82514.0,82513.0,0.546099]
[1743281740865,0.18919761,82514.0,82513.0,0.546099]
[1743281741354,0.18719761,82514.0,82513.0,0.546099]
[1743281741557,0.18919761,82514.0,82513.0,0.546099]
[1743281742066,0.18919761,82514.0,82513.0,0.185299]
[1743281742251,0.18919761,82514.0,82513.0,0.546099]
[1743281742966,0.18719761,82514.0,82513.0,0.185299]
[1743281743166,0.18919761,82514.0,82513.0,0.185299]
[1743281743367,0.18919761,82514.0,82513.0,0.546099]
[1743281745057,0.18919761,82514.0,82513.0,0.185299]
[1743281745368,0.12619761,82514.0,82513.0,0.546099]
[1743281747759,0.00496001,82514.0,82513.0,0.546099]
[1743281748070,0.004,82514.0,82513.0,0.546099]
[1743281748454,0.5025053,82533.0,82520.0,0.0606142]
[1743281748655,0.10921107,82524.0,82523.0,0.4820243]
[1743281748864,0.10921107,82524.0,82523.0,0.4829043]
[1743281748865,0.00092,82524.0,82523.0,0.4829043]
[1743281749264,0.14466887,82527.0,82526.0,0.1212199]
[1743281749463,0.14554888,82527.0,82526.0,0.1220999]
[1743281750170,0.14554888,82527.0,82526.0,0.1542999]
[1743281750373,0.27176738,82527.0,82526.0,0.16677859]
[1743281751059,0.27676738,82527.0,82526.0,0.16777859]
[1743281751466,0.27676738,82527.0,82526.0,0.1552999]
[1743281752969,0.27676738,82527.0,82526.0,0.1878999]
[1743281754470,0.27676738,82527.0,82526.0,0.19681748]
[1743281759465,0.33916738,82527.0,82526.0,0.19681748]
[1743281760160,0.15554888,82527.0,82526.0,0.19681748]
[1743281760365,0.01088001,82527.0,82526.0,0.19681748]
[1743281760564,0.01,82527.0,82526.0,0.19681748]
[1743281761076,0.10853849,82531.0,82530.0,0.1212141]
[1743281761374,0.1094185,82531.0,82530.0,0.4828941]
[1743281761574,0.10853849,82531.0,82530.0,0.4828941]
[1743281761772,0.1094185,82531.0,82530.0,0.4828941]
[1743281761969,0.1094185,82531.0,82530.0,0.5150941]
[1743281762669,0.1154185,82531.0,82530.0,0.5150941]
[1743281762869,0.1194185,82531.0,82530.0,0.5150941]
[1743281764171,0.01088001,82531.0,82530.0,0.5150941]
[1743281764370,0.01,82531.0,82530.0,0.5150941]
[1743281765975,0.01,82531.0,82530.0,0.8758941]
[1743281766372,0.01,82531.0,82530.0,0.1542941]
[1743281766567,0.01,82531.0,82530.0,0.8758941]
[1743281766766,0.1312126,82531.0,82530.0,0.8758941]
[1743281766976,0.2258126,82531.0,82530.0,0.00088]
[1743281767279,0.1212243,82523.0,82516.0,0.36306874]
[1743281767575,0.4826643,82523.0,82522.0,0.29047488]
[1743281767970,0.5465643,82523.0,82522.0,0.29047488]
[1743281769577,0.5465643,82523.0,82522.0,0.41170068]
[1743281769769,0.6671243,82523.0,82522.0,0.41170068]
[1743281769969,0.06554,82523.0,82522.0,0.41170068]
[1743281770167,0.005,82523.0,82522.0,0.12204758]
[1743281770370,0.00564,82523.0,82522.0,0.18524758]
[1743281770574,0.00464,82523.0,82522.0,0.18524758]
[1743281770774,0.00564,82523.0,82522.0,0.18524758]
[1743281771373,0.00564,82523.0,82522.0,0.19766693]
[1743281771576,0.005,82523.0,82522.0,0.19766693]
[1743281772273,0.10853849,82524.0,82523.0,0.1212243]
[1743281772774,0.10925849,82524.0,82523.0,0.1870443]
[1743281772977,0.00072,82524.0,82523.0,0.1870443]
[1743281773179,0.0004,82532.0,82531.0,0.1212126]
[1743281773377,0.00104,82532.0,82531.0,0.4826526]
[1743281774084,0.00104,82532.0,82531.0,0.5477526]
[1743281774276,0.0004,82532.0,82531.0,0.5477526]
[1743281774477,0.0004,82532.0,82531.0,0.5487526]
[1743281775084,0.0004,82532.0,82531.0,0.5477526]
[1743281775577,0.00112,82532.0,82531.0,0.5477526]
[1743281776690,0.00112,82532.0,82531.0,0.5497526]
[1743281777388,0.00112,82532.0,82531.0,0.5487526]
[1743281777581,0.00112,82532.0,82531.0,0.5497526]
[1743281778079,0.0004,82532.0,82531.0,0.5497526]
[1743281778684,0.0312,82547.0,82546.0,0.1211906]
[1743281778881,0.03254,82547.0,82546.0,0.1219106]
[1743281779083,0.0645,82547.0,82546.0,0.1219106]
[1743281779488,0.06514,82547.0,82546.0,0.1219106]
[1743281779685,0.1863291,82547.0,82546.0,0.1219106]
[1743281790579,0.1863291,82547.0,82546.0,0.00072]
[1743281791292,0.1212052,82536.0,82535.0,0.0633]
[1743281791491,0.1218452,82536.0,82535.0,0.06394]
[1743281792293,0.1218452,82536.0,82535.0,0.2457437]
[1743281793186,0.00064,82536.0,82535.0,0.7287465]
[1743281793488,0.0004,82548.0,82547.0,0.1211891]
[1743281793688,0.00104,82548.0,82547.0,0.1218691]
[1743281793886,0.0004,82548.0,82547.0,0.1218691]
[1743281794089,0.0004,82548.0,82547.0,0.1824691]
[1743281795681,0.00116,82548.0,82547.0,0.1824691]
[1743281796082,0.0004,82548.0,82547.0,0.1824691]
[1743281796486,0.00104,82548.0,82547.0,0.1824691]
[1743281801986,0.0004,82548.0,82547.0,0.1824691]
[1743281802905,0.1215876,82548.0,82547.0,0.1824691]
[1743281803095,0.1222276,82548.0,82547.0,0.1824691]
[1743281803294,0.00104,82548.0,82547.0,0.1824691]
[1743281804001,0.06304,82548.0,82547.0,0.1824691]
[1743281805107,0.0624,82548.0,82547.0,0.1824691]
[1743281807310,0.06304,82548.0,82547.0,0.1824691]
[1743281807507,0.0624,82548.0,82547.0,0.1824691]
[1743281807911,0.06304,82548.0,82547.0,0.1824691]
[1743281808121,0.0624,82548.0,82547.0,0.1824691]
[1743281812615,0.06304,82548.0,82547.0,0.1824691]
[1743281813320,0.06304,82548.0,82547.0,0.5432691]
[1743281814521,0.19661282,82548.0,82547.0,0.5432691]
[1743281814722,0.1842676,82548.0,82547.0,0.4826691]
[1743281814924,0.06308,82548.0,82547.0,0.4826691]
[1743281815418,0.0624,82548.0,82547.0,0.4826691]
[1743281816323,0.1835876,82548.0,82547.0,0.4826691]
[1743281816519,0.1843076,82548.0,82547.0,0.4826691]
[1743281820519,0.1843076,82548.0,82547.0,0.36148]
[1743281820723,0.5451076,82548.0,82547.0,0.00068]
[1743281820929,0.121192,82545.0,82544.0,0.1211922]
[1743281821129,0.121832,82545.0,82544.0,0.1218722]
[1743281821629,0.121832,82545.0,82544.0,0.1824678]
[1743281824027,0.121832,82545.0,82544.0,0.0612756]
[1743281824224,0.121832,82545.0,82544.0,0.00068]
[1743281824435,0.1211994,82540.0,82539.0,0.00018178]
[1743281824735,0.1211994,82540.0,82539.0,0.00082178]
[1743281824927,0.1218394,82540.0,82539.0,0.00082178]
[1743281825333,0.1832394,82540.0,82539.0,0.00082178]
[1743281825630,0.5440394,82540.0,82539.0,0.00082178]
[1743281825829,0.66519351,82540.0,82539.0,0.00082178]
[1743281826030,0.060602,82537.0,82533.0,0.36306874]
[1743281826231,0.1212082,82534.0,82533.0,0.36378874]
[1743281826423,0.1220482,82534.0,82533.0,0.36378874]
[1743281826830,0.24320231,82534.0,82533.0,0.36378874]
[1743281827032,0.24320231,82534.0,82533.0,0.00072]
[1743281827231,0.1212141,82530.0,82529.0,0.1212151]
[1743281827532,0.1210541,82530.0,82529.0,0.00064]
[1743281827934,0.1210541,82530.0,82529.0,0.1218555]
[1743281828134,0.1190541,82530.0,82529.0,0.1218555]
[1743281828635,0.1190541,82530.0,82529.0,0.1853555]
[1743281828837,0.13144071,82530.0,82529.0,0.1873555]
[1743281829040,0.13144071,82530.0,82529.0,0.1903555]
[1743281831935,0.13144071,82530.0,82529.0,0.00564]
[1743281832129,0.1212199,82526.0,82525.0,0.00018178]
[1743281832330,0.1220599,82526.0,82525.0,0.00018178]
[1743281833435,0.1220599,82526.0,82525.0,0.00318178]
[1743281834234,0.1220599,82526.0,82525.0,0.00618178]
[1743281835742,0.1220599,82526.0,82525.0,0.00706178]
[1743281835937,0.1220599,82526.0,82525.0,0.00618178]
[1743281836143,0.1220599,82526.0,82525.0,0.12740318]
[1743281842344,0.00084,82526.0,82525.0,0.12740318]
[1743281842544,0.00084,82526.0,82525.0,0.12832318]
[1743281842942,0.00084,82526.0,82525.0,0.20401138]
[1743281843951,0.10835773,82531.0,82530.0,0.1212141]
[1743281844140,0.10919773,82531.0,82530.0,0.1220541]
[1743281844342,0.05929773,82531.0,82530.0,0.2425741]
[1743281844545,0.05845773,82531.0,82530.0,0.2425741]
[1743281844852,0.05845773,82531.0,82530.0,0.2746741]
[1743281845054,0.05845773,82531.0,82530.0,0.6354741]
[1743281845238,0.05929773,82531.0,82530.0,0.6354741]
[1743281845440,0.05845773,82531.0,82530.0,0.6374741]
[1743281845644,0.05845773,82531.0,82530.0,0.6394741]
[1743281847867,0.00018178,82538.0,82537.0,0.1212038]
[1743281848045,0.00018178,82538.0,82537.0,0.1218438]
[1743281848046,0.00102178,82538.0,82537.0,0.1218438]
[1743281848351,0.00102178,82538.0,82537.0,0.4826438]
[1743281848651,0.12222408,82538.0,82537.0,0.4826438]
[1743281848853,0.12222408,82538.0,82537.0,0.5481438]
[1743281850346,0.00102178,82538.0,82537.0,0.5481438]
[1743281850651,0.00018178,82538.0,82537.0,0.5481438]
[1743281850838,0.00110178,82538.0,82537.0,0.5481438]
[1743281851943,0.00018178,82538.0,82537.0,0.5481438]
[1743281852452,0.00106178,82538.0,82537.0,0.5481438]
[1743281853441,0.00018178,82538.0,82537.0,0.5481438]
[1743281853652,0.03382178,82538.0,82537.0,0.5481438]
[1743281853853,0.03298178,82538.0,82537.0,0.5481438]
[1743281855243,0.03298178,82538.0,82537.0,0.1873438]
[1743281855443,0.03382178,82538.0,82537.0,0.1873438]
[1743281855745,0.03382178,82538.0,82537.0,0.5481438]
[1743281855939,0.03298178,82538.0,82537.0,0.5481438]
[1743281856744,0.03298178,82538.0,82537.0,0.1873438]
[1743281856947,0.03382178,82538.0,82537.0,0.5481438]
[1743281857154,0.03298178,82538.0,82537.0,0.5481438]
[1743281857449,0.0308,82553.0,82547.0,0.1211891]
[1743281857657,0.00132,82548.0,82547.0,0.4826291]
[1743281857955,0.0004,82548.0,82547.0,0.4826291]
[1743281858351,0.14447698,82554.0,82553.0,0.1211803]
[1743281858657,0.14447698,82554.0,82553.0,0.1218203]
[1743281859352,0.18083609,82561.0,82556.0,0.0605873]
[1743281859551,0.18083609,82561.0,82560.0,0.48197]
[1743281859760,0.18083609,82561.0,82560.0,0.4975138]
[1743281860054,0.0004,82564.0,82563.0,0.1211656]
[1743281860259,0.0004,82564.0,82563.0,0.2574694]
[1743281860647,0.0004,82564.0,82563.0,0.3195694]
[1743281861156,0.0004,82564.0,82563.0,0.31951697]
[1743281861456,0.0004,82564.0,82563.0,0.3040256]
[1743281861656,0.0004,82564.0,82563.0,0.32876268]
[1743281862456,0.0084,82564.0,82563.0,0.31327845]
[1743281863349,0.0084,82564.0,82563.0,0.67407845]
[1743281865248,0.0084,82564.0,82563.0,0.67471845]
[1743281865445,0.0084,82564.0,82563.0,0.31391845]
[1743281865650,0.0084,82564.0,82563.0,0.67471845]
[1743281869759,0.0084,82564.0,82563.0,0.6903279]
[1743281869967,0.0084,82564.0,82563.0,0.69033107]
[1743281870263,0.0084,82564.0,82563.0,0.67471845]
[1743281871055,0.0084,82564.0,82563.0,0.69033969]
[1743281872968,0.0084,82564.0,82563.0,0.69033352]
[1743281876766,0.0084,82564.0,82563.0,0.65943352]
[1743281877970,0.0084,82564.0,82563.0,0.64381845]
[1743281885569,0.0084,82564.0,82563.0,0.67551845]
[1743281885869,0.0084,82564.0,82563.0,0.64381845]
[1743281886273,0.0084,82564.0,82563.0,0.61261845]
[1743281886774,0.0084,82564.0,82563.0,0.61229845]
[1743281888262,0.1295641,82564.0,82563.0,0.4826056]
[1743281888466,0.1304841,82564.0,82563.0,0.4826056]
[1743281888873,0.1295641,82564.0,82563.0,0.4826056]
[1743281889069,0.1911641,82564.0,82563.0,0.4826056]
[1743281889271,0.1920041,82564.0,82563.0,0.4826056]
[1743281891571,0.07084,82564.0,82563.0,0.4826056]
[1743281891976,0.07084,82564.0,82563.0,0.1218056]
[1743281892178,0.07084,82564.0,82563.0,0.4826056]
[1743281892478,0.4092,82585.0,82571.0,0.1211539]
[1743281892663,0.0308,82576.0,82575.0,0.121148]
[1743281892867,0.03148,82576.0,82575.0,0.121908]
[1743281893469,0.00068,82576.0,82575.0,0.1977931]
[1743281893675,0.18135155,82578.0,82577.0,0.1211451]
[1743281893875,0.18211155,82578.0,82577.0,0.1219051]
[1743281894877,0.30625515,82578.0,82577.0,0.1219051]
[1743281895180,0.18511155,82578.0,82577.0,0.1219051]
[1743281895782,0.18511155,82578.0,82577.0,0.4120714]
[1743281895783,0.00376,82578.0,82577.0,0.4120714]
[1743281895971,0.1241436,82578.0,82577.0,0.4120714]
[1743281896373,0.1557436,82578.0,82577.0,0.4120714]
[1743281898379,0.1882436,82578.0,82577.0,0.7728714]
[1743281898981,0.1882436,82578.0,82577.0,0.4827051]
[1743281899181,0.1889636,82578.0,82577.0,0.4827051]
[1743281899377,0.1889636,82578.0,82577.0,0.5139051]
[1743281900277,0.1889636,82578.0,82577.0,0.1531051]
[1743281900482,0.1889636,82578.0,82577.0,0.5139051]
[1743281901584,0.1889636,82578.0,82577.0,0.6343051]
[1743281903579,0.1889636,82578.0,82577.0,0.1219051]
[1743281903974,0.1889636,82578.0,82577.0,0.4827051]
[1743281904578,0.1889636,82578.0,82577.0,0.1219051]
[1743281904777,0.1889636,82578.0,82577.0,0.4827051]
[1743281905377,0.1889636,82578.0,82577.0,0.1219051]
[1743281905573,0.1889636,82578.0,82577.0,0.4827051]
[1743281906178,0.1889636,82578.0,82577.0,0.1219051]
[1743281906379,0.1889636,82578.0,82577.0,0.4827051]
[1743281906886,0.06782,82578.0,82577.0,0.4827051]
[1743281907081,0.0355,82578.0,82577.0,0.5157051]
[1743281907479,0.0355,82578.0,82577.0,0.5472051]
[1743281907480,0.03618,82578.0,82577.0,0.5472051]
[1743281907777,0.1566436,82578.0,82577.0,0.5472051]
[1743281907984,0.1573636,82578.0,82577.0,0.5472051]
[1743281909890,0.1573636,82578.0,82577.0,0.76496154]
[1743281910079,0.1573236,82578.0,82577.0,0.73196154]
[1743281912280,0.1573236,82578.0,82577.0,0.37116154]
[1743281912589,0.1573236,82578.0,82577.0,0.73196154]
[1743281913490,0.1573236,82578.0,82577.0,0.5142051]
[1743281914282,0.1573236,82578.0,82577.0,0.1534051]
[1743281914592,0.1573236,82578.0,82577.0,0.5142051]
[1743281916590,0.1573236,82578.0,82577.0,0.1534051]
[1743281916793,0.1573236,82578.0,82577.0,0.5142051]
[1743281920581,0.1573236,82578.0,82577.0,0.1534051]
[1743281920782,0.1573236,82578.0,82577.0,0.5142051]
[1743281923881,0.1573236,82578.0,82577.0,0.1534051]
[1743281924188,0.1573236,82578.0,82577.0,0.5142051]
[1743281924390,0.1573236,82578.0,82577.0,0.1534051]
[1743281924589,0.1573236,82578.0,82577.0,0.5142051]
[1743281925392,0.1573236,82578.0,82577.0,0.00076]
[1743281926091,0.68762196,82578.0,82577.0,0.00076]
[1743281926392,0.1211465,82576.0,82575.0,0.2901663]
[1743281926587,0.1218265,82576.0,82575.0,0.2908463]
[1743281926983,0.1547265,82576.0,82575.0,0.2908463]
[1743281927890,0.1211539,82571.0,82570.0,0.36306874]
[1743281928091,0.1219939,82571.0,82570.0,0.36370874]
[1743281928793,0.1853939,82571.0,82570.0,0.00064]
[1743281929891,0.30650252,82571.0,82570.0,1e-07]
[1743281930187,0.1211568,82569.0,82568.0,0.21807189]
[1743281930387,0.48291681,82569.0,82568.0,0.21879189]
[1743281930992,0.75402543,82569.0,82568.0,0.21879189]
[1743281931190,1.16322543,82569.0,82568.0,0.21879189]
[1743281931394,0.1211627,82565.0,82564.0,0.29076252]
[1743281931594,0.1211627,82565.0,82564.0,0.29140252]
[1743281931595,0.60356271,82565.0,82564.0,0.29140252]
[1743281931889,0.75356271,82565.0,82564.0,0.25525502]
[1743281932096,0.87467427,82565.0,82564.0,0.25525502]
[1743281932481,0.12117,82560.0,82556.0,0.00018167]
[1743281932692,0.12253,82560.0,82559.0,0.36370874]
[1743281932896,0.13452832,82560.0,82559.0,0.36370874]
[1743281933195,0.1211744,82557.0,82556.0,0.00018167]
[1743281933385,0.4836144,82557.0,82556.0,0.00018167]
[1743281933898,0.49252063,82557.0,82556.0,0.00018167]
[1743281936690,0.49252063,82557.0,82544.0,0.0317]
[1743281936691,0.0605917,82551.0,82544.0,0.0317]
[1743281936894,0.121192,82545.0,82544.0,0.03326]
[1743281937088,0.483632,82545.0,82544.0,0.03326]
[1743281937482,0.483632,82545.0,82544.0,0.0317]
[1743281937688,0.544832,82545.0,82544.0,0.0317]
[1743281938195,0.544832,82545.0,82544.0,0.0327]
[1743281938899,0.544832,82545.0,82544.0,0.0337]
[1743281939492,0.544832,82545.0,82544.0,0.0327]
[1743281939690,0.544832,82545.0,82544.0,0.0337]
[1743281941989,0.544832,82545.0,82544.0,0.03438]
[1743281942895,0.544832,82545.0,82544.0,0.0337]
[1743281944894,0.544832,82545.0,82544.0,0.03434]
[1743281945405,0.544832,82545.0,82544.0,0.0337]
[1743281945795,0.544832,82545.0,82544.0,0.03434]
[1743281945996,0.184032,82545.0,82544.0,0.03434]
[1743281946198,0.184032,82545.0,82544.0,0.06474]
[1743281946995,0.122832,82545.0,82544.0,0.1859335]
[1743281951990,0.122832,82545.0,82544.0,0.06474]
[1743281952397,0.1212038,82537.0,82536.0,0.00018167]
[1743281952603,0.12300381,82537.0,82536.0,0.00018167]
[1743281953395,0.15590381,82537.0,82536.0,0.00018167]
[1743281953803,0.18750381,82537.0,82536.0,0.00018167]
[1743281954401,0.18750381,82537.0,82536.0,0.00318167]
[1743281954602,0.19980063,82537.0,82536.0,0.00318167]
[1743281956395,0.19980063,82537.0,82536.0,0.00518167]
[1743281965206,0.0606043,82534.0,82523.0,0.00048471]
[1743281965407,0.1212229,82524.0,82523.0,0.00048471]
[1743281965708,0.12298291,82524.0,82523.0,0.00048471]
[1743281965896,0.21708291,82524.0,82523.0,0.00048471]
[1743281966301,0.21708291,82524.0,82523.0,0.00648471]
[1743281966907,0.21708291,82524.0,82523.0,0.00048471]
[1743281967106,0.21708291,82524.0,82523.0,0.00748471]
[1743281967902,0.21708291,82524.0,82523.0,0.00248471]
[1743281968303,0.3615753,82524.0,82523.0,0.00248471]
[1743281969215,0.7223753,82524.0,82523.0,0.00248471]
[1743281971108,0.8428153,82524.0,82523.0,0.00248471]
[1743281971305,0.6282753,82524.0,82523.0,0.18700901]
[1743281971503,0.48378291,82524.0,82523.0,0.21920901]
[1743281971904,0.48378291,82524.0,82523.0,0.18700901]
[1743281972118,0.48378291,82524.0,82523.0,0.06578471]
[1743281972302,0.58028291,82524.0,82523.0,0.06578471]
[1743281973315,0.58028291,82524.0,82523.0,0.18700901]
[1743281974817,0.21948291,82524.0,82523.0,0.18700901]
[1743281977317,0.21948291,82524.0,82523.0,0.06578471]
[1743281978916,0.21948291,82524.0,82523.0,0.03378471]
[1743281979310,0.34066051,82524.0,82523.0,0.00248471]
[1743281980213,0.18808291,82524.0,82523.0,0.00248471]
[1743281980412,0.18808291,82524.0,82523.0,0.12370901]
[1743281980605,0.18808291,82524.0,82523.0,0.00248471]
[1743281980811,0.12298291,82524.0,82523.0,0.00248471]
[1743281981011,0.12298291,82524.0,82523.0,0.12370901]
[1743281981205,0.12298291,82524.0,82523.0,0.15700901]
[1743281981614,0.12298291,82524.0,82523.0,0.05104807]
[1743281982015,0.12298291,82524.0,82523.0,0.17227237]
[1743281982220,0.12298291,82524.0,82523.0,0.08374807]
[1743281982815,0.12298291,82524.0,82523.0,0.20497237]
[1743281983114,0.12298291,82524.0,82523.0,0.08374807]
[1743281986110,0.12298291,82524.0,82523.0,0.06848471]
[1743281987211,0.12298291,82524.0,82523.0,0.18970901]
[1743281991222,0.15618291,82524.0,82523.0,0.18970901]
[1743281991722,0.15618291,82524.0,82523.0,0.20516252]
[1743281992517,0.18788291,82524.0,82523.0,0.18970901]
[1743281993521,0.18788291,82524.0,82523.0,0.20515812]
[1743281994118,0.19088291,82524.0,82523.0,0.20415812]
[1743281994317,0.19188291,82524.0,82523.0,0.20315812]
[1743281994514,0.19188291,82524.0,82523.0,0.18770901]
[1743281994924,0.00576001,82524.0,82523.0,0.18770901]
[1743281995120,0.00476001,82524.0,82523.0,0.1998953]
[1743281995326,0.00776001,82524.0,82523.0,0.21516464]
[1743281995922,0.00776001,82524.0,82523.0,0.57596464]
[1743281996122,0.006,82524.0,82523.0,0.57596464]
[1743281996421,0.00776001,82524.0,82523.0,0.57596464]
[1743281996610,0.00576001,82524.0,82523.0,0.5606953]
[1743281997312,0.00276001,82524.0,82523.0,0.5606953]
[1743281997514,0.00376001,82524.0,82523.0,0.5606953]
[1743281999516,0.00376001,82524.0,82523.0,0.6810953]
[1743282000117,0.002,82524.0,82523.0,0.6810953]
[1743282000320,0.002,82524.0,82523.0,0.54850901]
[1743282000321,0.1232229,82524.0,82523.0,0.54850901]
[1743282001220,0.002,82524.0,82523.0,0.54850901]
[1743282001619,0.00018167,82532.0,82531.0,0.1212126]
[1743282001819,0.00018167,82532.0,82531.0,0.4820126]
[1743282002522,0.00018167,82532.0,82531.0,0.56090625]
[1743282003229,0.00018167,82532.0,82531.0,0.57310774]
[1743282003534,0.00318167,82532.0,82531.0,0.57310774]
[1743282003732,0.00318167,82532.0,82531.0,0.56090625]
[1743282003933,0.00518167,82532.0,82531.0,0.56090625]
[1743282004228,0.00518167,82532.0,82531.0,0.57307372]
[1743282004728,0.00518167,82532.0,82531.0,0.5456126]
[1743282005233,0.12819278,82532.0,82531.0,0.5456126]
[1743282005450,0.18979278,82532.0,82531.0,0.5456126]
[1743282005635,0.18979278,82532.0,82531.0,0.56083829]
[1743282006640,0.18979278,82532.0,82531.0,0.5456126]
[1743282007045,0.03828168,82532.0,82531.0,0.5456126]
[1743282007242,7e-08,82532.0,82531.0,0.5456126]
[1743282007443,7e-08,82532.0,82531.0,0.6956126]
[1743282007644,7e-08,82532.0,82531.0,0.73728683]
[1743282007835,7e-08,82532.0,82531.0,0.58728683]
[1743282008042,7e-08,82532.0,82531.0,0.75265813]
[1743282009046,0.10877281,82545.0,82544.0,0.1211935]
[1743282009349,0.00184,82545.0,82544.0,0.64458773]
[1743282009538,0.14449239,82550.0,82549.0,0.1211862]
[1743282009539,0.11906271,82550.0,82549.0,0.1211862]
[1743282009743,0.12026272,82550.0,82549.0,0.16354043]
[1743282010353,0.12026272,82550.0,82549.0,0.26913596]
[1743282010649,0.12026272,82550.0,82549.0,0.28156498]
[1743282011843,0.12026272,82550.0,82549.0,0.33866287]
[1743282012644,0.12026272,82550.0,82549.0,0.31981354]
[1743282013050,0.00018129,82558.0,82557.0,0.1211744]
[1743282013246,0.00018129,82558.0,82557.0,0.58137065]
[1743282013247,0.00102129,82558.0,82557.0,0.58137065]
[1743282013442,0.1533514,82573.0,82559.0,0.0605855]
[1743282013748,0.1533514,82573.0,82563.0,0.1211656]
[1743282013749,0.0322,82573.0,82563.0,0.1211656]
[1743282013942,0.0322,82573.0,82572.0,0.1211524]
[1743282014144,0.1533509,82573.0,82572.0,0.56251519]
[1743282014453,0.1540309,82573.0,82572.0,0.60384417]
[1743282014754,0.1540309,82573.0,82572.0,0.64071897]
[1743282015052,0.1540309,82573.0,82572.0,0.64071892]
[1743282015254,0.1540309,82573.0,82572.0,0.60384417]
[1743282015550,0.00068,82573.0,82572.0,1.00425463]
[1743282015749,0.0319,82579.0,82578.0,0.1211436]
[1743282015947,0.0319,82579.0,82578.0,0.20660781]
[1743282016147,0.1530421,82579.0,82578.0,0.20660781]
[1743282016351,0.1537621,82579.0,82578.0,0.16154223]
[1743282016653,0.30495899,82579.0,82578.0,0.09518937]
[1743282016858,0.1211627,82565.0,82559.0,0.1211703]
[1743282017056,0.1219627,82565.0,82564.0,0.01920489]